fUSD/lending_fUSD_20240101
["ID","MTS","AMOUNT","RATE_DAILY","PERIOD"]
[309787166,1704123048119,-1305.95992416,0.00039168,2]
[309787167,1704123048128,-5502.16418286,0.00039168,2]
[309787168,1704123048137,-303.5427763,0.00039168,7]
[309787169,1704123048146,-238.44729803,0.00039168,14]
[309787170,1704123048156,-1000.0,0.00039168,2]
[309787171,1704123048165,-1000.0,0.00039168,2]
[309787172,1704123048174,-1000.0,0.00039168,2]
[309787173,1704123048183,-1000.0,0.00039168,2]
[309787174,1704123048193,-1000.0,0.00039168,2]
[309787175,1704123048202,-1000.0,0.00039168,2]
[309787176,1704123048211,-1000.0,0.00039168,2]
[309787177,1704123048220,-1000.0,0.00039168,2]
[309787178,1704123048229,-1000.0,0.00039168,2]
[309787179,1704123048238,-1000.0,0.00039168,2]
[309787180,1704123048247,-1233.573226,0.00039168,2]
[309787181,1704123048256,-1147.77204177,0.00039168,2]
[309787182,1704123048266,-97945.73461173,0.00039168,2]
[309787183,1704123048275,-5000.0,0.00039175,10]
[309787184,1704123048285,-1968.06946982,0.00039175,2]
[309787185,1704123048294,-503.85,0.00039178,2]
[309787186,1704123048304,-1432.4,0.00039178,2]
[309787187,1704123048314,-1297.77,0.00039178,2]
[309787188,1704123048323,-1000.0,0.0003926,2]
[309787189,1704123048333,-406.8,0.00039288,2]
[309787190,1704123048343,-406.8,0.00039288,2]
[309787191,1704123048354,-406.8,0.00039288,2]
[309787192,1704123048365,-315.41,0.00039288,2]
[309787193,1704123048375,-165.072,0.0003932,7]
[309787194,1704123048385,-150.0,0.00039366,2]
[309787195,1704123048394,-505.6,0.00039422,2]
[309787196,1704123048404,-153.84,0.00039441,2]
[309787197,1704123048414,-406.63,0.00039463,2]
[309787198,1704123048425,-6478.596324,0.00039525,2]
[309787199,1704123048434,-1619.649082,0.00039525,2]
[309787200,1704123048444,-332.636443,0.00039525,2]
[309787201,1704123048454,-152.52685301,0.00039567,2]
[309787202,1704123048465,-9634.71041968,0.00039573,2]
[309787203,1704123048478,-4360.42364502,0.00039573,2]
[309787204,1704123048487,-16086.99247589,0.00039573,2]
[309787205,1704123048497,-503.85,0.00039589,2]
[309787206,1704123048507,-406.8,0.00039616,2]
[309787207,1704123048517,-406.8,0.00039616,2]
[309787208,1704123048527,-406.8,0.00039616,2]
[309787209,1704123048536,-406.8,0.00039616,2]
[309787210,1704123048547,-406.8,0.00039616,2]
[309787211,1704123048557,-500.0,0.00039639,4]
[309787212,1704123048567,-500.0,0.00039647,4]
[309787213,1704123048576,-500.0,0.00039656,4]
[309787214,1704123048586,-500.0,0.00039665,4]
[309787215,1704123048597,-500.0,0.00039674,4]
[309787216,1704123048606,-500.0,0.00039683,4]
[309787217,1704123048615,-379353.39,0.00039688,4]
[309787218,1704123048625,-500.0,0.00039691,4]
[309787219,1704123048635,-8000.0,0.000397,2]
[309787220,1704123048646,-500.0,0.000397,4]
[309787221,1704123048656,-500.0,0.00039709,4]
[309787222,1704123048666,-500.0,0.00039718,4]
[309787223,1704123048675,-500.0,0.00039727,4]
[309787224,1704123048686,-500.0,0.00039735,4]
[309787225,1704123048696,-500.0,0.00039744,4]
[309787226,1704123048706,-500.0,0.00039753,4]
[309787227,1704123048717,-500.0,0.00039762,4]
[309787228,1704123048728,-500.0,0.00039771,4]
[309787229,1704123048737,-500.0,0.00039779,4]
[309787230,1704123048748,-500.0,0.00039788,4]
[309787231,1704123048759,-500.0,0.00039797,4]
[309787232,1704123048769,-19317.89792776,0.000398,2]
[309787233,1704123048779,-500.0,0.00039806,4]
[309787234,1704123048788,-500.0,0.00039815,4]
[309787235,1704123048797,-500.0,0.00039823,4]
[309787236,1704123048806,-500.0,0.00039832,4]
[309787237,1704123048816,-500.0,0.00039841,4]
[309787238,1704123048828,-500.0,0.0003985,4]
[309787239,1704123048838,-500.0,0.00039859,4]
[309787240,1704123048848,-6851.76494712,0.000399,2]
[309787241,1704123048858,-6851.76494693,0.000399,2]
[309787242,1704123048868,-6851.76494693,0.000399,2]
[309787243,1704123048878,-6851.76494693,0.000399,2]
[309787244,1704123048887,-6851.76494693,0.000399,2]
[309787245,1704123048897,-6851.76494693,0.000399,2]
[309787246,1704123048906,-6851.76494693,0.000399,2]
[309787247,1704123048916,-6851.76494693,0.000399,2]
[309787248,1704123048926,-158.84,0.00039925,2]
[309787249,1704123048939,-4310.0,0.0003999,2]
[309787250,1704123048949,-100000.0,0.0004,10]
[309787251,1704123048961,-2424.78926863,0.0004,2]
[309787252,1704123048971,-2263.56074827,0.0004,4]
[309787253,1704123048983,-18322.89095993,0.0004,4]
[309787254,1704123048993,-5939.31535782,0.0004,4]
[309787255,1704123049005,-2464.9820667,0.0004,4]
[309787256,1704123049016,-2671.32874608,0.0004,4]
[309787257,1704123049026,-1956.42492667,0.0004,4]
[309787258,1704123049038,-1081.10657627,0.0004,4]
[309787259,1704123049047,-1781.54763794,0.0004,10]
[309787260,1704123049057,-2057.97679126,0.0004,4]
[309787261,1704123049066,-759.65681004,0.0004,4]
[309787262,1704123049076,-351.89,0.0004,2]
[309787263,1704123049088,-11039.36704498,0.0004,4]
[309787264,1704123049098,-568.90802202,0.0004,2]
[309787265,1704123049107,-246.42743064,0.0004,30]
[309787266,1704123049118,-87762.64483299,0.0004,30]
[309787267,1704123049128,-996.04257303,0.0004,30]
[309787268,1704123049138,-1094.0,0.0004,30]
[309787269,1704123049149,-5000.0,0.0004,2]
[309787270,1704123049159,-160.94299927,0.0004,2]
[309787271,1704123049170,-5000.0,0.0004,30]
[309787272,1704123049182,-503.85,0.0004,2]
[309787273,1704123049192,-200.13081593,0.0004,2]
[309787274,1704123049202,-2009.08,0.0004,2]
[309787275,1704123049212,-249565.0,0.0004,2]
[309787276,1704123049223,-309.46,0.0004,2]
[309787277,1704123049234,-2000.0,0.0004,2]
[309787278,1704123049243,-6478.596324,0.00040001,2]
[309787279,1704123049252,-1619.649082,0.00040001,2]
[309787280,1704123049262,-332.636443,0.00040001,2]
[309787281,1704123049274,-157.59,0.00040041,2]
[309787282,1704123049285,-167.0,0.00040283,2]
[309787283,1704123049295,-150.0,0.00040303,2]
[309787284,1704123049306,-212.42,0.00040349,15]
[309787285,1704123049318,-153.84,0.00040358,2]
[309787286,1704123049329,-503.85,0.0004041,2]
[309787287,1704123049340,-2886.0,0.00040438,2]
[309787288,1704123049349,-2263.0,0.00040438,2]
[309787289,1704123049359,-1234.0,0.00040438,2]
[309787290,1704123049368,-20531.18600199,0.0004049,5]
[309787291,1704123049378,-1000.0,0.000405,30]
[309787292,1704123049388,-6851.76494693,0.00040532,5]
[309787293,1704123049399,-10800.8,0.00040548,2]
[309787294,1704123049408,-430.4,0.00040649,2]
[309787295,1704123049419,-17389.0,0.000407,3]
[309787296,1704123049429,-1000.0,0.00040733,2]
[309787297,1704123049439,-39464.43296996,0.00040767,3]
[309787298,1704123049449,-205.0,0.00040774,23]
[309787299,1704123049459,-503.85,0.00040821,2]
[309787300,1704123049471,-250.0,0.00040877,2]
[309787301,1704123049481,-6002.5463597,0.000409,4]
[309787302,1704123049492,-500.0,0.0004097,2]
[309787303,1704123049502,-500.0,0.0004097,2]
[309787304,1704123049512,-500.0,0.0004097,2]
[309787305,1704123049522,-500.0,0.0004097,2]
[309787306,1704123049532,-500.0,0.0004097,2]
[309787307,1704123049542,-100000.0,0.00041,11]
[309787308,1704123049553,-2479.4757245,0.00041,4]
[309787309,1704123049563,-799.80475461,0.00041,7]
[309787310,1704123049572,-1000.0,0.00041,30]
[309787311,1704123049582,-5000.0,0.00041,30]
[309787312,1704123049592,-5000.0,0.00041,30]
[309787313,1704123049602,-800.0,0.00041,2]
[309787314,1704123049611,-5000.0,0.00041,30]
[309787315,1704123049621,-34329.42781466,0.00041,30]
[309787316,1704123049630,-157.0,0.00041,4]
[309787317,1704123049639,-157.0,0.00041,4]
[309787318,1704123049650,-2000.0,0.00041,2]
[309787319,1704123049661,-58000.0,0.00041086,5]
[309787320,1704123049671,-58000.0,0.00041095,5]
[309787321,1704123049682,-500.0,0.00041095,2]
[309787322,1704123049692,-187.5,0.00041095,2]
[309787323,1704123049702,-375.0,0.00041095,2]
[309787324,1704123049711,-562.5,0.00041095,2]
[309787325,1704123049721,-750.0,0.00041095,2]
[309787326,1704123049730,-937.5,0.00041095,2]
[309787327,1704123049740,-377.10286602,0.00041095,2]
[309787328,1704123049749,-150.0,0.00041096,10]
[309787329,1704123049759,-4124.73832245,0.00041096,2]
[309787330,1704123049769,-8000.0,0.000411,5]
[309787331,1704123049778,-500.0,0.0004115,2]
[309787332,1704123049787,-5000.0,0.000412,30]
[309787333,1704123049797,-500.0,0.00041205,2]
[309787334,1704123049806,-503.85,0.00041232,2]
[309787335,1704123049815,-150.0,0.0004124,2]
[309787336,1704123049824,-500.0,0.0004126,2]
[309787337,1704123049834,-153.84,0.00041275,2]
[309787338,1704123049843,-500.0,0.00041315,2]
[309787339,1704123049853,-500.0,0.00041369,2]
[309787340,1704123049863,-180.13,0.00041381,2]
[309787341,1704123049873,-150.0,0.00041381,2]
[309787342,1704123049883,-150.0,0.00041381,2]
[309787343,1704123049893,-500.0,0.00041424,2]
[309787344,1704123049902,-309.46,0.0004144,2]
[309787345,1704123049911,-167.0,0.00041458,2]
[309787346,1704123049920,-500.0,0.00041479,2]
[309787347,1704123049930,-411.4164241,0.000415,30]
[309787348,1704123049941,-322.39205056,0.000415,90]
[309787349,1704123049951,-1000.0,0.000415,30]
[309787350,1704123049961,-250.0,0.000415,2]
[309787351,1704123049970,-17389.0,0.000415,5]
[309787352,1704123049979,-5000.0,0.000415,30]
[309787353,1704123049989,-263.01182442,0.00041522,4]
[309787354,1704123049998,-442.94418045,0.00041534,2]
[309787355,1704123050009,-569.6,0.00041594,2]
[309787356,1704123050019,-503.85,0.00041643,2]
[309787357,1704123050030,-2009.08,0.0004168,2]
[309787358,1704123050040,-505.6,0.00041686,2]
[309787359,1704123050050,-264.77906901,0.00041686,13]
[309787360,1704123050059,-100000.0,0.00042,12]
[309787361,1704123050069,-1065.42133969,0.00042,2]
[309787362,1704123050079,-1000.0,0.00042,30]
[309787363,1704123050089,-1067.9848932,0.00042,30]
[309787364,1704123050098,-5000.0,0.00042,30]
[309787365,1704123050108,-5000.0,0.00042,30]
[309787366,1704123050119,-200.0,0.00042,2]
[309787367,1704123050253,-2000.0,0.00042,2]
[309787368,1704123050265,-503.85,0.00042054,2]
[309787369,1704123050277,-406.8,0.00042078,2]
[309787370,1704123050287,-399.0,0.0004208,7]
[309787371,1704123050297,-399.0,0.0004209,7]
[309787372,1704123050306,-6851.76494693,0.00042111,5]
[309787373,1704123050316,-200000.0,0.00042172,30]
[309787374,1704123050326,-150.0,0.00042177,2]
[309787375,1704123050336,-1000.0,0.00042205,2]
[309787376,1704123050345,-3594.99812966,0.000423,3]
[309787377,1704123050355,-500.0,0.000424,2]
[309787378,1704123050365,-500.0,0.000424,2]
[309787379,1704123050375,-39464.43296996,0.000424,4]
[309787380,1704123050384,-5800.0,0.00042447,2]
[309787381,1704123050394,-5800.0,0.00042455,2]
[309787382,1704123050404,-503.85,0.00042465,2]
[309787383,1704123050414,-194.71482302,0.00042465,30]
[309787384,1704123050423,-379.21498452,0.000425,4]
[309787385,1704123050433,-1000.0,0.000425,30]
[309787386,1704123050443,-7486.0,0.000425,5]
[309787387,1704123050453,-5000.0,0.000425,30]
[309787388,1704123050462,-5000.0,0.000426,30]
[309787389,1704123050477,-206.0,0.0004271,2]
[309787390,1704123050487,-2042.0,0.0004275,10]
[309787391,1704123050496,-150.0,0.00042799,10]
[309787392,1704123050506,-400000.0,0.000428,33]
[309787393,1704123050518,-503.85,0.00042876,2]
[309787394,1704123050528,-309.46,0.0004288,2]
[309787395,1704123050537,-717.855026,0.00042897,10]
[309787396,1704123050548,-58742.4524343,0.00042971,2]
[309787397,1704123050558,-2892.0,0.0004299,2]
[309787398,1704123050569,-100000.0,0.00043,13]
[309787399,1704123050579,-2700.00393714,0.00043,3]
[309787400,1704123050589,-810.81371748,0.00043,5]
[309787401,1704123050599,-341.09581796,0.00043,30]
[309787402,1704123050608,-2021.75746296,0.00043,5]
[309787403,1704123050618,-5000.0,0.00043,30]
[309787404,1704123050628,-43772.82493919,0.00043,30]
[309787405,1704123050638,-5000.0,0.00043,30]
[309787406,1704123050649,-5000.0,0.00043,30]
[309787407,1704123050658,-5000.0,0.00043,30]
[309787408,1704123050667,-1341.87,0.00043,2]
[309787409,1704123050677,-2000.0,0.00043,2]
[309787410,1704123050687,-200.82443424,0.00043,2]
[309787411,1704123050697,-48171.0,0.00043,2]
[309787412,1704123050710,-905.0,0.00043,2]
[309787413,1704123050720,-150.0,0.00043115,2]
[309787414,1704123050729,-2154.56,0.00043179,2]
[309787415,1704123050738,-157.0,0.000432,4]
[309787416,1704123050749,-157.0,0.000432,4]
[309787417,1704123050759,-543.0,0.00043205,2]
[309787418,1704123050768,-503.85,0.00043287,2]
[309787419,1704123050778,-240.61969367,0.000433,30]
[309787420,1704123050788,-2009.08,0.0004336,2]
[309787421,1704123050797,-2263.0,0.00043438,2]
[309787422,1704123050807,-1234.0,0.00043438,2]
[309787423,1704123050816,-200.0,0.0004347,2]
[309787424,1704123050826,-206.0,0.0004347,2]
[309787425,1704123050836,-209.0,0.0004347,2]
[309787426,1704123050845,-215.0,0.0004347,2]
[309787427,1704123050855,-386.01768321,0.00043513,30]
[309787428,1704123050864,-205.0,0.00043521,28]
[309787429,1704123050874,-1000.0,0.00043677,2]
[309787430,1704123050883,-6851.76494693,0.00043689,5]
[309787431,1704123050893,-503.85,0.00043698,2]
[309787432,1704123050902,-177000.0,0.000437,11]
[309787433,1704123050912,-7486.88399209,0.000438,5]
[309787434,1704123050921,-500.0,0.00043835,7]
[309787435,1704123050930,-567.52126325,0.00043835,7]
[309787436,1704123050940,-500.0,0.00043835,7]
[309787437,1704123050950,-500.0,0.00043835,7]
[309787438,1704123050960,-500.0,0.00043835,2]
[309787439,1704123050970,-527.99633506,0.00043835,7]
[309787440,1704123050979,-921.48,0.00043835,2]
[309787441,1704123050988,-201.2,0.00043835,2]
[309787442,1704123050998,-500.0,0.00043835,7]
[309787443,1704123051007,-500.0,0.00043835,7]
[309787444,1704123051016,-593.425167,0.00043835,7]
[309787445,1704123051026,-196.18132293,0.00043835,7]
[309787446,1704123051035,-500.0,0.00043835,7]
[309787447,1704123051045,-500.0,0.00043835,7]
[309787448,1704123051055,-500.0,0.00043835,7]
[309787449,1704123051065,-500.0,0.00043835,7]
[309787450,1704123051074,-500.0,0.00043835,7]
[309787451,1704123051085,-604.42,0.00043835,7]
[309787452,1704123051094,-500.0,0.00043835,7]
[309787453,1704123051104,-500.0,0.00043835,7]
[309787454,1704123051114,-1000.0,0.00043835,2]
[309787455,1704123051124,-500.0,0.00043835,7]
[309787456,1704123051134,-500.0,0.00043835,5]
[309787457,1704123051144,-150.0,0.00043835,2]
[309787458,1704123051155,-539.97923261,0.00043835,7]
[309787459,1704123051165,-238.73448645,0.00043835,7]
[309787460,1704123051175,-530.8341195,0.00043835,7]
[309787461,1704123051187,-458.82566159,0.00043835,7]
[309787462,1704123051197,-500.0,0.00043835,7]
[309787463,1704123051208,-323.16488445,0.00043835,7]
[309787464,1704123051219,-707.79,0.00043835,2]
[309787465,1704123051230,-800.0,0.00043836,30]
[309787466,1704123051240,-505.6,0.00043949,2]
[309787467,1704123051250,-2325.7598334,0.0004397,2]
[309787468,1704123051261,-5302.7586719,0.0004397,2]
[309787469,1704123051270,-11938.51238823,0.00043972,30]
[309787470,1704123051280,-404.75,0.0004398,7]
[309787471,1704123051289,-399.0,0.0004399,7]
[309787472,1704123051299,-4078.0,0.0004399,2]
[309787473,1704123051309,-191.83244499,0.00043999,10]
[309787474,1704123051319,-100000.0,0.00044,14]
[309787475,1704123051329,-5000.0,0.00044,30]
[309787476,1704123051338,-2053.0,0.00044,30]
[309787477,1704123051349,-172.05173159,0.00044,30]
[309787478,1704123051359,-5000.0,0.00044,30]
[309787479,1704123051370,-5000.0,0.00044,30]
[309787480,1704123051380,-5000.0,0.00044,30]
[309787481,1704123051390,-800.0,0.00044,2]
[309787482,1704123051401,-150.03,0.00044,30]
[309787483,1704123051412,-2948.17712824,0.00044,5]
[309787484,1704123051422,-316.94307097,0.00044,30]
[309787485,1704123051433,-1999.99,0.00044,10]
[309787486,1704123051444,-2000.0,0.00044,10]
[309787487,1704123051454,-1668.22,0.00044,10]
[309787488,1704123051465,-184.61,0.00044,10]
[309787489,1704123051476,-613430.80227398,0.00044,2]
[309787490,1704123051486,-2110.0,0.00044,15]
[309787491,1704123051497,-1675.153676,0.00044,2]
[309787492,1704123051507,-2000.0,0.00044,2]
[309787493,1704123051517,-150.0,0.00044052,2]
[309787494,1704123051529,-2530.62986547,0.0004408,30]
[309787495,1704123051539,-212.42,0.00044085,15]
[309787496,1704123051548,-172.34,0.0004409,60]
[309787497,1704123051559,-159.55,0.0004409,60]
[309787498,1704123051569,-200.0,0.000441,2]
[309787499,1704123051579,-500.0,0.00044109,7]
[309787500,1704123051589,-500.0,0.00044109,7]
[309787501,1704123051599,-503.85,0.00044109,2]
[309787502,1704123051609,-500.0,0.00044109,2]
[309787503,1704123051627,-921.48,0.00044109,2]
[309787504,1704123051640,-444.9,0.00044109,7]
[309787505,1704123051652,-500.0,0.00044109,7]
[309787506,1704123051663,-500.0,0.00044109,7]
[309787507,1704123051674,-1000.0,0.00044109,2]
[309787508,1704123051685,-500.0,0.00044109,5]
[309787509,1704123051695,-150.0,0.00044109,2]
[309787510,1704123051706,-500.0,0.00044109,7]
[309787511,1704123051717,-707.79,0.00044109,2]
[309787512,1704123051727,-200.0,0.0004424,30]
[309787513,1704123051738,-212.0,0.0004424,30]
[309787514,1704123051750,-200.0,0.0004424,30]
[309787515,1704123051762,-206.0,0.0004424,30]
[309787516,1704123051772,-206.0,0.0004424,30]
[309787517,1704123051782,-248.0,0.0004424,30]
[309787518,1704123051793,-209.0,0.0004424,30]
[309787519,1704123051803,-215.0,0.0004424,30]
[309787520,1704123051815,-309.46,0.0004432,2]
[309787521,1704123051825,-500.0,0.00044383,7]
[309787522,1704123051836,-500.0,0.00044383,2]
[309787523,1704123051846,-921.48,0.00044383,2]
[309787524,1704123051856,-500.0,0.00044383,7]
[309787525,1704123051867,-500.0,0.00044383,7]
[309787526,1704123051877,-1000.0,0.00044383,2]
[309787527,1704123051887,-500.0,0.00044383,5]
[309787528,1704123051896,-150.0,0.00044383,2]
[309787529,1704123051906,-500.0,0.00044383,7]
[309787530,1704123051917,-707.79,0.00044383,2]
[309787531,1704123051927,-186.17,0.00044384,2]
[309787532,1704123051939,-264.77906901,0.00044443,16]
[309787533,1704123051949,-500.0,0.0004446,9]
[309787534,1704123051959,-500.0,0.0004448,9]
[309787535,1704123051969,-1270.7080543,0.000445,20]
[309787536,1704123051980,-2110.0,0.000445,15]
[309787537,1704123051990,-500.0,0.000445,9]
[309787538,1704123052001,-500.0,0.000445,14]
[309787539,1704123052011,-503.85,0.0004452,2]
[309787540,1704123052024,-500.0,0.0004452,9]
[309787541,1704123052036,-500.0,0.0004454,9]
[309787542,1704123052050,-500.0,0.0004456,9]
[309787543,1704123052061,-444.94377425,0.00044575,30]
[309787544,1704123052072,-150.54904638,0.00044575,30]
[309787545,1704123052085,-500.0,0.0004458,9]
[309787546,1704123052097,-150.0,0.000446,34]
[309787547,1704123052109,-1000.0,0.000446,20]
[309787548,1704123052122,-200.0,0.000446,2]
[309787549,1704123052134,-500.0,0.000446,9]
[309787550,1704123052147,-500.0,0.00044657,7]
[309787551,1704123052159,-500.0,0.00044657,2]
[309787552,1704123052170,-921.48,0.00044657,2]
[309787553,1704123052181,-3674.68,0.00044657,30]
[309787554,1704123052194,-3674.68,0.00044657,30]
[309787555,1704123052206,-3674.68,0.00044657,30]
[309787556,1704123052216,-3674.68,0.00044657,30]
[309787557,1704123052227,-3674.68,0.00044657,30]
[309787558,1704123052237,-3674.68,0.00044657,30]
[309787559,1704123052247,-3674.68,0.00044657,30]
[309787560,1704123052257,-3674.68,0.00044657,30]
[309787561,1704123052268,-3674.68,0.00044657,30]
[309787562,1704123052282,-3674.68,0.00044657,30]
[309787563,1704123052293,-3674.68,0.00044657,30]
[309787564,1704123052304,-3674.68,0.00044657,30]
[309787565,1704123052315,-3674.68,0.00044657,30]
[309787566,1704123052328,-3674.68,0.00044657,30]
[309787567,1704123052340,-3674.68,0.00044657,30]
[309787568,1704123052350,-3674.68,0.00044657,30]
[309787569,1704123052360,-3674.68,0.00044657,30]
[309787570,1704123052370,-3674.68,0.00044657,30]
[309787571,1704123052381,-3674.68,0.00044657,30]
[309787572,1704123052391,-3674.68,0.00044657,30]
[309787573,1704123052402,-3674.68,0.00044657,30]
[309787574,1704123052411,-3674.68,0.00044657,30]
[309787575,1704123052422,-3674.68,0.00044657,30]
[309787576,1704123052432,-3674.7125604,0.00044657,30]
[309787577,1704123052443,-500.0,0.00044657,7]
[309787578,1704123052453,-500.0,0.00044657,7]
[309787579,1704123052467,-1000.0,0.00044657,2]
[309787580,1704123052478,-500.0,0.00044657,5]
[309787581,1704123052487,-150.0,0.00044657,2]
[309787582,1704123052499,-500.0,0.00044657,7]
[309787583,1704123052510,-707.79,0.00044657,2]
[309787584,1704123052521,-400.0,0.0004467,3]
[309787585,1704123052532,-156.69233985,0.0004469,30]
[309787586,1704123052542,-191.07957506,0.0004469,30]
[309787587,1704123052555,-417.68813183,0.0004469,30]
[309787588,1704123052566,-312.87614256,0.0004469,30]
[309787589,1704123052576,-171.00044323,0.0004469,30]
[309787590,1704123052586,-653.37539314,0.0004469,30]
[309787591,1704123052595,-947.18167268,0.0004469,30]
[309787592,1704123052605,-215.17267397,0.0004469,30]
[309787593,1704123052616,-20000.0,0.00044698,31]
[309787594,1704123052626,-1490.3646,0.00044775,3]
[309787595,1704123052636,-14400.01307833,0.000448,30]
[309787596,1704123052646,-100000.0,0.000448,6]
[309787597,1704123052655,-213.43736135,0.00044869,4]
[309787598,1704123052665,-1184.24894136,0.00044869,4]
[309787599,1704123052674,-546.71177623,0.00044869,60]
[309787600,1704123052685,-302.78566014,0.00044869,4]
[309787601,1704123052695,-3890.89891836,0.00044869,3]
[309787602,1704123052705,-3322.88197843,0.00044869,4]
[309787603,1704123052715,-33687.00797237,0.00044869,4]
[309787604,1704123052725,-214.20255367,0.00044869,4]
[309787605,1704123052735,-2217.74374888,0.00044869,2]
[309787606,1704123052747,-269459.09361889,0.00044888,8]
[309787607,1704123052760,-1000000.0,0.000449,10]
[309787608,1704123052770,-184.63,0.000449,7]
[309787609,1704123052781,-2386.90218758,0.000449,30]
[309787610,1704123052793,-170.41455812,0.000449,20]
[309787611,1704123052804,-2416.80579296,0.000449,2]
[309787612,1704123052815,-11528.0,0.000449,30]
[309787613,1704123052827,-500.0,0.00044931,7]
[309787614,1704123052838,-503.85,0.00044931,2]
[309787615,1704123052851,-500.0,0.00044931,2]
[309787616,1704123052862,-921.48,0.00044931,2]
[309787617,1704123052873,-500.0,0.00044931,90]
[309787618,1704123052884,-500.0,0.00044931,90]
[309787619,1704123052895,-500.0,0.00044931,90]
[309787620,1704123052905,-500.0,0.00044931,90]
[309787621,1704123052916,-500.0,0.00044931,90]
[309787622,1704123052926,-500.0,0.00044931,7]
[309787623,1704123052937,-500.0,0.00044931,90]
[309787624,1704123052947,-500.0,0.00044931,90]
[309787625,1704123052958,-500.0,0.00044931,90]
[309787626,1704123052968,-500.0,0.00044931,90]
[309787627,1704123052978,-500.0,0.00044931,90]
[309787628,1704123052988,-376.73960345,0.00044931,7]
[309787629,1704123052998,-1000.0,0.00044931,2]
[309787630,1704123053009,-500.0,0.00044931,5]
[309787631,1704123053019,-150.0,0.00044931,2]
[309787632,1704123053030,-500.0,0.00044931,7]
[309787633,1704123053039,-707.79,0.00044931,2]
[309787634,1704123053051,-57466.2337741,0.00044969,2]
[309787635,1704123053062,-400.0,0.0004497,3]
[309787636,1704123053072,-2000.0,0.00044984,31]
[309787637,1704123053083,-150.0,0.00044989,2]
[309787638,1704123053094,-10332.0,0.0004499,2]
[309787639,1704123053104,-419.78500541,0.00044999,15]
[309787640,1704123053114,-100000.0,0.00045,15]
[309787641,1704123053124,-496216.31003154,0.00045,5]
[309787642,1704123053134,-8870.70299188,0.00045,7]
[309787643,1704123053144,-14299.07,0.00045,14]
[309787644,1704123053155,-386.62004052,0.00045,4]
[309787645,1704123053166,-179.26071827,0.00045,30]
[309787646,1704123053176,-265.2499911,0.00045,120]
[309787647,1704123053187,-10664.23004586,0.00045,30]
[309787648,1704123053198,-300.07741816,0.00045,14]
[309787649,1704123053208,-941.06209468,0.00045,30]
[309787650,1704123053366,-3125.58467144,0.00045,4]
[309787651,1704123053377,-18615.5247475,0.00045,4]
[309787652,1704123053387,-5759.66998889,0.00045,15]
[309787653,1704123053396,-537.51741352,0.00045,120]
[309787654,1704123053406,-4054.56457171,0.00045,30]
[309787655,1704123053415,-1329.2242571,0.00045,30]
[309787656,1704123053427,-222.06270776,0.00045,6]
[309787657,1704123053436,-300.0,0.00045,120]
[309787658,1704123053446,-350.0,0.00045,120]
[309787659,1704123053455,-215.0,0.00045,30]
[309787660,1704123053465,-206.0,0.00045,30]
[309787661,1704123053475,-200.0,0.00045,30]
[309787662,1704123053485,-206.0,0.00045,30]
[309787663,1704123053495,-212.0,0.00045,30]
[309787664,1704123053504,-215.0,0.00045,30]
[309787665,1704123053513,-209.0,0.00045,30]